[Event "WYCC 2018 G18"]
[Site "Halkidiki"]
[Date "2018.10.22"]
[Round "4"]
[White "Di Benedetto, Desiree"]
[Black "Hng, Mei-En Emmanuelle"]
[Result "0-1"]
[ECO "A43"]
[WhiteElo "2321"]
[BlackElo "2020"]
[Annotator "NA"]
[PlyCount "114"]
[EventDate "2018.10.20"]
[EventType "swiss"]
[EventCountry "GRE"]
[SourceTitle "playchess.com"]
[Source "ChessBase"]
[SourceQuality "1"]
[TimeControl "40/5400+30:1800+30"]

1. d4 {[%emt 0:00:00]} Nf6 {[%emt 0:00:00]} 2. Nf3 {[%emt 0:00:00]} c5 {[%emt 0:00:00]} 3. d5 {[%emt 0:00:28]} e6 {[%emt 0:00:17]} 4. Nc3 {[%emt 0:00:48]} d6 {[%emt 0:03:36]} 5. e4 {[%emt 0:00:16]} exd5 {[%emt 0:01:17]} 6. Nxd5 {[%emt 0:00:30]} Nxd5 {[%emt 0:06:21]} 7. Qxd5 {[%emt 0:00:28]} Nc6 {[%emt 0:00:16]} 8. Ng5 {[%emt 0:01:23]} Qc7 {[%emt 0:06:25]} 9. Bc4 {[%emt 0:01:02] LiveBook: 20 Games} Nd4 {[%emt 0:04:56]} (9... Nd8 $142) 10. Qxf7+ {[%emt 0:07:01]} Qxf7 {[%emt 0:00:10]} 11. Nxf7 {[%emt 0:33:17]} Nxc2+ {[%emt 0:27:02]} 12. Kd1 {[%emt 0:04:02]} Nxa1 {[%emt 0:01:55]} 13. Nxh8 {[%emt 0:00:08]} Bd7 {[%emt 0:00:09]} 14. Bg5 {[%emt 0:26:52]} Be7 {[%emt 0:05:26]} 15. Nf7 {[%emt 0:01:51]} Bc6 {[%emt 0:04:00]} 16. Bxe7 {[%emt 0:03:46]} Kxe7 {[%emt 0:01:00]} 17. Ng5 {[%emt 0:03:00]} Kf6 $16 {[%emt 0:00:44]} 18. h4 {[%emt 0:09:34]} h6 {[%emt 0:00:27]} 19. f4 {[%emt 0:00:36]} b5 {[%emt 0:13:40]} 20. Be2 {[%emt 0:02:00]} hxg5 {[%emt 0:08:18]} 21. hxg5+ {[%emt 0:01:01]} Kf7 {[%emt 0:00:09]} 22. Kd2 {[%emt 0:01:50]} Bxe4 {[%emt 0:00:17]} 23. Rxa1 {[%emt 0:00:20]} Bxg2 {[%emt 0:00:38]} 24. Bxb5 {[%emt 0:00:05]} Rb8 {[%emt 0:00:09]} 25. a4 {[%emt 0:00:22]} d5 {[%emt 0:01:38]} 26. Kc3 {[%emt 0:01:35]} Be4 {[%emt 0:00:45]} 27. Re1 {[%emt 0:00:35]} Rh8 {[%emt 0:00:38]} 28. Bd7 {[%emt 0:00:14]} Rh2 {[%emt 0:00:15]} 29. f5 {[%emt 0:00:32]} Rf2 {[%emt 0:01:50]} 30. Be6+ {[%emt 0:00:11]} Kf8 {[%emt 0:00:41]} 31. Rg1 {[%emt 0:01:09]} Ke7 {[%emt 0:00:30]} 32. Rg3 {[%emt 0:00:25]} Kd6 {[%emt 0:00:26]} 33. b4 {[%emt 0:00:23]} cxb4+ {[%emt 0:00:54]} 34. Kxb4 {[%emt 0:00:05]} Bxf5 {[%emt 0:00:12]} 35. Bxf5 {[%emt 0:00:57]} Rxf5 {[%emt 0:00:06]} 36. Kb5 {[%emt 0:00:14]} d4+ {[%emt 0:03:55]} 37. Kc4 {[%emt 0:00:26]} Ra5 {[%emt 0:02:52]} 38. Kb4 {[%emt 0:00:52]} Rc5 {[%emt 0:01:03]} 39. g6 {[%emt 0:00:13]} a5+ {[%emt 0:00:27]} 40. Kb3 {[%emt 0:00:00]} Rc3+ {[%emt 0:00:00]} 41. Rxc3 {[%emt 0:00:04]} dxc3 {[%emt 0:02:32]} 42. Kxc3 {[%emt 0:00:06]} Kc5 {[%emt 0:00:15]} 43. Kd3 {[%emt 0:04:19]} Kb4 {[%emt 0:01:32]} 44. Kd4 {[%emt 0:02:24]} Kxa4 {[%emt 0:01:04]} 45. Kc4 {[%emt 0:04:24]} Ka3 {[%emt 0:00:10]} 46. Kd5 Kb4 {[%emt 0:00:51]} 47. Ke6 {[%emt 0:01:44]} a4 {[%emt 0:00:07]} 48. Kf7 {[%emt 0:00:04]} a3 {[%emt 0:00:07]} 49. Kxg7 {[%emt 0:00:04]} a2 {[%emt 0:00:04]} 50. Kf7 {[%emt 0:00:31]} a1=Q {[%emt 0:00:10]} 51. g7 {[%emt 0:00:03]} Qf1+ {[%emt 0:00:37]} 52. Ke7 {[%emt 0:00:10]} Qg2 {[%emt 0:01:28]} 53. Kf8 {[%emt 0:00:16]} Qf3+ {[%emt 0:00:08]} 54. Ke7 {[%emt 0:00:06]} Qg4 {[%emt 0:00:11]} 55. Kf8 {[%emt 0:00:08]} Qf5+ {[%emt 0:00:17]} 56. Ke7 {[%emt 0:00:09]} Qg6 {[%emt 0:00:26]} 57. Kf8 {[%emt 0:00:03]} Qf6+ {[%emt 0:00:09]} 0-1

[Event "WYCC 2018 G18"]
[Site "Halkidiki"]
[Date "2018.10.22"]
[Round "4"]
[White "Avramidou, Anastasia"]
[Black "Garcia Martin, Marta"]
[Result "1/2-1/2"]
[ECO "A22"]
[WhiteElo "2285"]
[BlackElo "2329"]
[Annotator "NA"]
[PlyCount "63"]
[EventDate "2018.10.20"]
[EventType "swiss"]
[EventCountry "GRE"]
[SourceTitle "playchess.com"]
[Source "ChessBase"]
[SourceQuality "1"]
[TimeControl "40/5400+30:1800+30"]

1. c4 {[%emt 0:00:00]} Nf6 {[%emt 0:00:00]} 2. Nc3 {[%emt 0:00:00]} e5 {[%emt 0:01:33]} 3. g3 {[%emt 0:00:02]} Bb4 {[%emt 0:00:49]} 4. Qc2 {[%emt 0:00:31]} O-O {[%emt 0:08:42]} 5. Bg2 {[%emt 0:00:07]} Re8 {[%emt 0:04:38]} 6. e3 {[%emt 0:00:12]} Bxc3 {[%emt 0:17:55] A22: English Opening: 1...e5 2 Nc3 Nf6} 7. dxc3 {[%emt 0:01:53]} d6 {[%emt 0:01:06]} (7... e4 $17) 8. e4 {[%emt 0:00:42]} Be6 $146 {[%emt 0:01:02]} ({Predecessor:} 8... a6 9. Ne2 b5 10. cxb5 axb5 11. O-O Nbd7 12. Rd1 Bb7 13. b3 Qb8 14. c4 bxc4 {0-1 (35) Tuominen,M-Keskisarja,T (2260) Finland 1995}) 9. b3 {[%emt 0:00:16] LiveBook: 9 Games} a5 {[%emt 0:10:24]} 10. Nf3 {[%emt 0:02:50]} a4 {[%emt 0:02:16]} 11. Rb1 {[%emt 0:00:09]} Qc8 {[%emt 0:05:23]} 12. Nd2 {[%emt 0:07:34]} Bh3 {[%emt 0:02:55]} 13. O-O {[%emt 0:00:14]} axb3 {[%emt 0:01:55]} 14. axb3 {[%emt 0:00:16]} Bxg2 {[%emt 0:00:29]} 15. Kxg2 {[%emt 0:00:09]} Nbd7 {[%emt 0:00:03]} 16. Re1 {[%emt 0:06:10]} b6 {[%emt 0:05:10]} 17. Nf1 {[%emt 0:04:36]} Qb7 {[%emt 0:00:10]} 18. Bg5 {[%emt 0:08:12]} Ra3 {[%emt 0:02:50]} 19. f3 {[%emt 0:06:10]} Rea8 {[%emt 0:01:08]} 20. Ne3 {[%emt 0:02:57]} h6 $11 {[%emt 0:18:40]} 21. Bxf6 {[%emt 0:00:17]} Nxf6 {[%emt 0:00:03]} 22. Rb2 {[%emt 0:04:02]} Qc6 {[%emt 0:06:29]} 23. Qd3 {[%emt 0:08:53]} Qc5 {[%emt 0:01:26]} 24. Ree2 {[%emt 0:10:04]} Ra1 {[%emt 0:02:43]} 25. b4 {[%emt 0:10:09]} Qc6 {[%emt 0:00:03]} 26. Nc2 {[%emt 0:00:27]} R1a4 {[%emt 0:02:06]} 27. Ne3 {[%emt 0:00:10]} Ra1 {[%emt 0:01:41]} 28. Nc2 {[%emt 0:00:08]} R1a7 {[%emt 0:01:01]} 29. Ne3 {[%emt 0:01:34]} Ra1 {[%emt 0:01:09]} 30. Nc2 {[%emt 0:00:07]} R1a7 {[%emt 0:00:18]} 31. Ne3 {[%emt 0:00:12]} Ra1 {[%emt 0:00:38]} 32. Nc2 {[%emt 0:01:23]} 1/2-1/2

[Event "WYCC 2018 G18"]
[Site "Halkidiki"]
[Date "2018.10.22"]
[Round "4"]
[White "Sliwicka, Alicja"]
[Black "Redondo Benavente, Ana"]
[Result "1/2-1/2"]
[ECO "C65"]
[WhiteElo "2264"]
[BlackElo "2055"]
[Annotator "NA"]
[PlyCount "45"]
[EventDate "2018.10.20"]
[EventType "swiss"]
[EventCountry "GRE"]
[SourceTitle "playchess.com"]
[Source "ChessBase"]
[SourceQuality "1"]
[TimeControl "40/5400+30:1800+30"]

1. e4 {[%emt 0:00:00]} e5 {[%emt 0:00:00]} 2. Nf3 {[%emt 0:00:00]} Nc6 {[%emt 0:00:00]} 3. Bb5 {[%emt 0:00:00]} Nf6 {[%emt 0:00:00]} 4. d3 {[%emt 0:01:33]} Bc5 {[%emt 0:00:15]} 5. c3 {[%emt 0:02:03]} O-O {[%emt 0:00:50]} 6. O-O {[%emt 0:02:48]} d6 {[%emt 0:03:11]} 7. Nbd2 {[%emt 0:03:18]} Ne7 {[%emt 0:03:12]} 8. h3 {[%emt 0:10:23]} c6 {[%emt 0:04:30]} 9. Ba4 {[%emt 0:00:33]} Bb6 {[%emt 0:00:14]} 10. Re1 {[%emt 0:00:43]} Ng6 {[%emt 0:01:12]} 11. Bc2 {[%emt 0:05:56]} Re8 {[%emt 0:06:58]} 12. d4 {[%emt 0:07:50]} Bc7 {[%emt 0:01:06]} 13. Nf1 {[%emt 0:02:33]} a5 {[%emt 0:05:15]} 14. Ng3 {[%emt 0:02:13]} h6 {[%emt 0:01:10]} 15. Nf5 {[%emt 0:10:42]} d5 $15 {[%emt 0:13:57]} 16. Nxe5 {[%emt 0:12:22]} dxe4 {[%emt 0:08:52]} 17. Ng3 {[%emt 0:07:50]} Nxe5 {[%emt 0:01:33]} 18. dxe5 {[%emt 0:00:08]} Qxd1 {[%emt 0:01:08]} 19. Rxd1 {[%emt 0:00:06]} Bxe5 {[%emt 0:01:06]} 20. Nxe4 {[%emt 0:01:25]} Nxe4 {[%emt 0:14:31]} 21. Bxe4 {[%emt 0:00:10]} Bc7 {[%emt 0:01:16]} 22. Bf3 {[%emt 0:00:45]} Bf5 {[%emt 0:02:03]} 23. Be3 {[%emt 0:02:53]} 1/2-1/2

[Event "WYCC 2018 G18"]
[Site "Halkidiki"]
[Date "2018.10.22"]
[Round "4"]
[White "Injac, Teodora"]
[Black "Bauyrzhan, Arnash"]
[Result "1-0"]
[ECO "A48"]
[WhiteElo "2258"]
[BlackElo "2011"]
[Annotator "NA"]
[PlyCount "55"]
[EventDate "2018.10.20"]
[EventType "swiss"]
[EventCountry "GRE"]
[SourceTitle "playchess.com"]
[Source "ChessBase"]
[SourceQuality "1"]
[TimeControl "40/5400+30:1800+30"]

1. d4 {[%emt 0:00:00]} Nf6 {[%emt 0:00:00]} 2. Nf3 {[%emt 0:00:00]} g6 {[%emt 0:00:37]} 3. Nbd2 {[%emt 0:00:39]} d5 {[%emt 0:02:10]} 4. e3 {[%emt 0:00:17]} Bg7 {[%emt 0:00:59]} 5. b4 {[%emt 0:00:46]} O-O {[%emt 0:02:45] D02: 1 d4 d5 2 Nf3 sidelines, including 2...Nf6 3 g3 and 2...Nf6 3 Bf4} 6. Bb2 {[%emt 0:02:04]} (6. c4 a5 7. b5 c5 8. Bb2 Nbd7 9. Be2 b6 10. O-O Bb7 11. Rc1 Rc8 12. cxd5 Bxd5 13. Bc4 Bb7 14. Qe2 {1-0 (45) Inarkiev,E (2690)-Wei,Y (2735) Magas 2018}) 6... c6 {[%emt 0:02:56]} 7. a4 {[%emt 0:04:54]} Nbd7 {[%emt 0:16:25]} 8. Be2 {[%emt 0:13:14]} Re8 $146 {[%emt 0:07:39]} ({Predecessor:} 8... a5 9. bxa5 Qxa5 10. O-O Qc7 {1-0 (23) Epishin,V (2541)-Dijkhuis,O (2033) Bruges 2017}) 9. c4 {[%emt 0:12:41]} Qb6 {[%emt 0:13:16]} 10. Qb3 {[%emt 0:01:52]} a5 {[%emt 0:12:00]} 11. b5 {[%emt 0:02:00]} cxb5 {[%emt 0:00:37]} 12. axb5 {[%emt 0:07:50]} dxc4 {[%emt 0:02:23]} 13. Nxc4 {[%emt 0:01:29]} Qd8 {[%emt 0:00:40]} 14. Ng5 {[%emt 0:05:04]} Rf8 {[%emt 0:08:02]} 15. O-O {[%emt 0:03:26]} h6 {[%emt 0:01:48]} 16. Nf3 {[%emt 0:05:04]} b6 {[%emt 0:02:13]} 17. Rfd1 {[%emt 0:06:06]} Bb7 {[%emt 0:00:25]} 18. Nfe5 {[%emt 0:00:17]} Bd5 {[%emt 0:09:31]} 19. Nc6 {[%emt 0:01:14]} Qe8 {[%emt 0:06:09]} 20. Ba3 {[%emt 0:02:18]} Kh7 {[%emt 0:01:54]} 21. Nxe7 {[%emt 0:01:35]} Rh8 {[%emt 0:03:20]} 22. Nxd5 $18 {[%emt 0:00:31]} Nxd5 {[%emt 0:00:06]} 23. Nd6 {[%emt 0:01:45]} Qe6 {[%emt 0:00:21]} 24. Bc4 {[%emt 0:00:47]} a4 {[%emt 0:03:25]} 25. Qa2 {[%emt 0:00:29]} N7f6 {[%emt 0:00:21]} 26. e4 {[%emt 0:01:24]} Bf8 {[%emt 0:00:56]} 27. Bxd5 {[%emt 0:00:24]} Nxd5 {[%emt 0:00:06]} 28. Qxd5 {[%emt 0:00:24]} 1-0

[Event "WYCC 2018 G18"]
[Site "Halkidiki"]
[Date "2018.10.22"]
[Round "4"]
[White "Afonasieva, Anna"]
[Black "Obolentseva, Alexandra"]
[Result "0-1"]
[ECO "A49"]
[WhiteElo "2245"]
[BlackElo "2298"]
[Annotator "NA"]
[PlyCount "98"]
[EventDate "2018.10.20"]
[EventType "swiss"]
[EventCountry "GRE"]
[SourceTitle "playchess.com"]
[Source "ChessBase"]
[SourceQuality "1"]
[TimeControl "40/5400+30:1800+30"]

1. d4 {[%emt 0:00:00]} Nf6 {[%emt 0:00:00]} 2. Nf3 {[%emt 0:00:00]} g6 {[%emt 0:00:00]} 3. g3 {[%emt 0:00:00]} Bg7 {[%emt 0:00:04]} 4. Bg2 {[%emt 0:00:00]} c5 {[%emt 0:00:07]} 5. c4 {[%emt 0:00:21]} cxd4 {[%emt 0:00:08]} 6. Nxd4 {[%emt 0:00:06]} O-O {[%emt 0:00:11]} 7. O-O {[%emt 0:00:05]} Nc6 {[%emt 0:00:05]} 8. Nc3 {[%emt 0:00:19]} d6 {[%emt 0:00:09]} 9. e3 {[%emt 0:02:50]} Bg4 {[%emt 0:09:57] E61: Königsindisch (Abweichungen der Hauptvariante)} 10. Qa4 {[%emt 0:08:30]} Nd7 $146 {[%emt 0:00:57]} ({Vorgänger:} 10... Bd7 11. Nxc6 Bxc6 12. Bxc6 bxc6 13. Qxc6 Rc8 14. Qa6 Qd7 15. Bd2 Rc6 16. Qb5 Rfc8 17. Nd5 {0-1 (62) Khismatullin,D (2584)-Kornev,A (2575) Kazan 2006}) 11. Nxc6 {[%emt 0:12:25]} bxc6 {[%emt 0:00:09]} 12. c5 {[%emt 0:01:03]} Ne5 {[%emt 0:12:28]} 13. h3 {[%emt 0:03:21]} Bf3 {[%emt 0:06:37]} 14. Bxf3 {[%emt 0:03:53]} Nxf3+ {[%emt 0:00:07]} 15. Kg2 {[%emt 0:00:05]} Ne5 {[%emt 0:00:20]} 16. Rd1 {[%emt 0:01:11]} Qc7 {[%emt 0:04:11]} 17. cxd6 {[%emt 0:02:10]} exd6 {[%emt 0:00:07]} 18. e4 {[%emt 0:01:14]} Kh8 {[%emt 0:06:58]} 19. Be3 {[%emt 0:02:59]} f5 {[%emt 0:12:33]} 20. Rac1 {[%emt 0:04:32]} Qf7 $11 {[%emt 0:06:23]} 21. b3 {[%emt 0:19:15]} fxe4 {[%emt 0:03:13]} 22. Nxe4 {[%emt 0:06:19]} Qf3+ {[%emt 0:01:47]} 23. Kh2 {[%emt 0:00:10]} d5 {[%emt 0:00:48]} 24. Ng5 {[%emt 0:05:29]} Qe2 {[%emt 0:00:46]} 25. Kg1 {[%emt 0:09:29]} Rae8 {[%emt 0:05:32]} 26. Re1 {[%emt 0:07:17]} Qh5 {[%emt 0:00:21]} 27. Bf4 {[%emt 0:03:07]} h6 {[%emt 0:02:49]} 28. g4 {[%emt 0:02:11]} Qh4 {[%emt 0:00:50]} 29. Rxe5 {[%emt 0:01:05]} Bxe5 {[%emt 0:07:09]} 30. Nf3 {[%emt 0:00:16]} Rxf4 {[%emt 0:00:34]} 31. Nxh4 {[%emt 0:01:29]} Rxa4 {[%emt 0:00:05]} 32. bxa4 {[%emt 0:00:36]} Re6 {[%emt 0:00:04]} 33. Nf3 {[%emt 0:00:37]} Bf6 {[%emt 0:00:05]} 34. Rb1 {[%emt 0:00:18]} c5 {[%emt 0:02:07]} 35. Rb8+ {[%emt 0:01:42]} Kg7 {[%emt 0:00:25]} 36. Rb7+ {[%emt 0:00:13]} Re7 {[%emt 0:00:05]} 37. Rb5 {[%emt 0:00:07]} Rc7 {[%emt 0:00:25]} 38. Ne1 {[%emt 0:00:11]} d4 {[%emt 0:00:27]} 39. Kf1 {[%emt 0:01:02]} c4 {[%emt 0:00:37]} 40. Ke2 {[%emt 0:00:00]} d3+ {[%emt 0:00:00]} 41. Kd1 {[%emt 0:01:34]} Bh4 {[%emt 0:01:33]} 42. Rd5 {[%emt 0:01:11]} Bxf2 {[%emt 0:00:36]} 43. Nxd3 {[%emt 0:00:05]} cxd3 {[%emt 0:00:06]} 44. Rxd3 {[%emt 0:00:03]} Rc4 {[%emt 0:01:04]} 45. Rd7+ {[%emt 0:01:48]} Kf6 {[%emt 0:00:07]} 46. Rd6+ {[%emt 0:00:06]} Kg5 {[%emt 0:00:10]} 47. Rd5+ {[%emt 0:00:07]} Kh4 {[%emt 0:00:12]} 48. Rd6 {[%emt 0:00:05]} Rxa4 {[%emt 0:00:26]} 49. Rxg6 {[%emt 0:00:16]} Be3 {[%emt 0:00:08]} 0-1

[Event "WYCC 2018 G18"]
[Site "Halkidiki"]
[Date "2018.10.22"]
[Round "4"]
[White "Hrescak, Ivana"]
[Black "Perry, Tal"]
[Result "1/2-1/2"]
[ECO "A58"]
[WhiteElo "2173"]
[BlackElo "1702"]
[Annotator "NA"]
[PlyCount "81"]
[EventDate "2018.10.20"]
[EventType "swiss"]
[EventCountry "GRE"]
[SourceTitle "playchess.com"]
[Source "ChessBase"]
[SourceQuality "1"]
[TimeControl "40/5400+30:1800+30"]

1. d4 {[%emt 0:00:00]} Nf6 {[%emt 0:00:00]} 2. c4 {[%emt 0:00:00]} c5 {[%emt 0:00:00]} 3. d5 {[%emt 0:00:00]} b5 {[%emt 0:00:00]} 4. cxb5 {[%emt 0:00:00]} a6 {[%emt 0:00:05]} 5. bxa6 {[%emt 0:00:03]} Bxa6 {[%emt 0:00:12]} 6. Nc3 {[%emt 0:00:25]} g6 {[%emt 0:00:13]} 7. g3 {[%emt 0:00:09]} d6 {[%emt 0:00:15]} 8. Bg2 {[%emt 0:00:07]} Bg7 {[%emt 0:00:11]} 9. Nf3 {[%emt 0:00:36]} Nbd7 {[%emt 0:00:34]} 10. Rb1 {[%emt 0:00:41]} O-O {[%emt 0:00:48]} 11. O-O {[%emt 0:00:46]} Qa5 {[%emt 0:00:50]} 12. Bd2 {[%emt 0:04:40]} Rfb8 {[%emt 0:00:58]} 13. a4 {[%emt 0:08:33]} Qc7 {[%emt 0:02:23]} 14. b3 {[%emt 0:07:11]} Nb6 {[%emt 0:11:23]} 15. Ng5 {[%emt 0:04:10]} Qb7 {[%emt 0:07:53]} 16. Re1 {[%emt 0:10:25]} Nfxd5 {[%emt 0:27:10]} 17. Nxd5 {[%emt 0:11:43]} Nxd5 {[%emt 0:00:06]} 18. Bf4 {[%emt 0:01:29]} e6 {[%emt 0:10:46]} 19. Bxd6 {[%emt 0:01:32]} Rd8 {[%emt 0:13:15]} 20. Bxd5 {[%emt 0:14:51]} exd5 {[%emt 0:00:15]} 21. Bxc5 {[%emt 0:00:09]} Bc3 {[%emt 0:01:00]} 22. Nf3 {[%emt 0:14:15]} Bxe1 {[%emt 0:01:14]} 23. Qxe1 {[%emt 0:02:42]} Re8 {[%emt 0:00:46]} 24. Nd4 {[%emt 0:01:06]} Qd7 {[%emt 0:02:58]} 25. Qd1 {[%emt 0:02:04]} Rac8 {[%emt 0:01:04]} 26. b4 {[%emt 0:00:37]} Bc4 {[%emt 0:01:52]} 27. Ra1 {[%emt 0:02:27]} Qg4 {[%emt 0:04:55]} 28. e3 {[%emt 0:00:07]} Qe4 {[%emt 0:01:54]} 29. Qf3 {[%emt 0:01:13]} Qd3 {[%emt 0:01:07]} 30. Qd1 {[%emt 0:01:17]} Qe4 {[%emt 0:02:22]} 31. Qf3 {[%emt 0:00:09]} Qd3 {[%emt 0:00:18]} 32. Rd1 {[%emt 0:00:19]} Qa3 {[%emt 0:01:13]} 33. a5 {[%emt 0:00:32]} Rxc5 {[%emt 0:01:35]} 34. bxc5 {[%emt 0:00:30]} Qxc5 {[%emt 0:00:11]} 35. Ra1 {[%emt 0:00:41]} Ra8 {[%emt 0:00:20]} 36. Qf6 {[%emt 0:01:16]} Qc7 {[%emt 0:01:49]} 37. Nc6 {[%emt 0:09:18]} Ra6 {[%emt 0:02:16]} 38. Qd8+ {[%emt 0:00:27]} Qxd8 {[%emt 0:00:02]} 39. Nxd8 {[%emt 0:00:01]} d4 {[%emt 0:02:57]} 40. Nb7 {[%emt 0:00:00]} d3 {[%emt 0:00:00]} 41. Nc5 {[%emt 0:19:40]} 1/2-1/2

[Event "WYCC 2018 G18"]
[Site "Halkidiki"]
[Date "2018.10.22"]
[Round "4"]
[White "Gajcin, Marina"]
[Black "Nass, Sara"]
[Result "1-0"]
[ECO "B10"]
[WhiteElo "2153"]
[BlackElo "1986"]
[Annotator "NA"]
[PlyCount "17"]
[EventDate "2018.10.20"]
[EventType "swiss"]
[EventCountry "GRE"]
[SourceTitle "playchess.com"]
[Source "ChessBase"]
[SourceQuality "1"]
[TimeControl "40/5400+30:1800+30"]

{[%evp 16,16,427]} 1. e4 {[%emt 0:00:00]} c6 {[%emt 0:00:00]} 2. Nf3 {[%emt 0:00:00]} d5 {[%emt 0:00:00]} 3. Nc3 {[%emt 0:00:00]} dxe4 {[%emt 0:00:00]} 4. Nxe4 {[%emt 0:00:03]} Nf6 {[%emt 0:00:00]} 5. Qe2 {[%emt 0:00:05]} Nxe4 {[%emt 0:00:09]} 6. Qxe4 {[%emt 0:00:03]} Qd5 {[%emt 0:00:12]} 7. Qf4 {[%emt 0:00:06]} Bf5 {[%emt 0:06:57]} 8. Bc4 {[%emt 0:00:49]} Qc5 $18 {[%emt 0:39:10]} (8... Qe4+ $16 9. Qxe4 Bxe4) 9. b4 {[%emt 0:01:21]} 1-0

[Event "WYCC 2018 G18"]
[Site "Halkidiki"]
[Date "2018.10.22"]
[Round "4"]
[White "Arpita, Mukherjee"]
[Black "Prakapuk, Vera"]
[Result "1/2-1/2"]
[ECO "B12"]
[WhiteElo "2147"]
[BlackElo "1949"]
[Annotator "NA"]
[PlyCount "116"]
[EventDate "2018.10.20"]
[EventType "swiss"]
[EventCountry "GRE"]
[SourceTitle "playchess.com"]
[Source "ChessBase"]
[SourceQuality "1"]
[TimeControl "40/5400+30:1800+30"]

1. e4 {[%emt 0:00:00]} c6 {[%emt 0:00:00]} 2. d4 {[%emt 0:00:00]} d5 {[%emt 0:00:00]} 3. e5 {[%emt 0:00:00]} c5 {[%emt 0:00:07]} 4. dxc5 {[%emt 0:00:11]} Nc6 {[%emt 0:00:04]} 5. Nf3 {[%emt 0:00:14]} Bg4 {[%emt 0:00:14]} 6. c3 {[%emt 0:00:07]} e6 {[%emt 0:00:18]} 7. Be3 {[%emt 0:00:07]} Bxf3 {[%emt 0:00:50]} 8. Qxf3 {[%emt 0:00:08]} Nxe5 {[%emt 0:00:31]} 9. Bb5+ {[%emt 0:00:06]} Nc6 {[%emt 0:00:17]} 10. c4 {[%emt 0:00:10]} a6 {[%emt 0:04:37]} 11. Ba4 {[%emt 0:05:49]} Qf6 {[%emt 0:05:13]} 12. Nd2 {[%emt 0:02:42]} Nge7 {[%emt 0:12:55]} 13. Qxf6 {[%emt 0:04:08]} gxf6 {[%emt 0:00:06]} 14. O-O {[%emt 0:01:42]} O-O-O {[%emt 0:01:28]} 15. f3 {[%emt 0:13:41]} d4 {[%emt 0:16:36]} 16. Bf2 {[%emt 0:00:30]} Ng6 {[%emt 0:10:11]} 17. Bxc6 {[%emt 0:06:03]} bxc6 {[%emt 0:00:03]} 18. b4 {[%emt 0:00:06]} e5 {[%emt 0:05:37]} 19. g4 {[%emt 0:08:09]} Be7 {[%emt 0:08:26]} 20. Bg3 {[%emt 0:03:02]} h5 {[%emt 0:01:14]} 21. h3 {[%emt 0:01:09]} Rhg8 {[%emt 0:13:19]} 22. Kf2 {[%emt 0:01:22]} h4 {[%emt 0:02:51]} 23. Bh2 {[%emt 0:00:12]} Nf8 {[%emt 0:00:45]} 24. f4 {[%emt 0:11:47]} exf4 {[%emt 0:07:18]} 25. Bxf4 {[%emt 0:01:38]} Ne6 {[%emt 0:00:08]} 26. Bh2 {[%emt 0:01:18]} f5 {[%emt 0:00:59]} 27. gxf5 {[%emt 0:05:52]} Ng5 {[%emt 0:00:04]} 28. Rfe1 {[%emt 0:02:54]} Nxh3+ {[%emt 0:00:16]} 29. Kf3 {[%emt 0:00:20]} Ng5+ {[%emt 0:01:01]} 30. Kf2 {[%emt 0:00:06]} Bf6 {[%emt 0:00:40]} 31. Rab1 {[%emt 0:06:46]} d3 {[%emt 0:01:06]} 32. Rb3 {[%emt 0:01:06]} Nh3+ {[%emt 0:01:25]} 33. Kf1 {[%emt 0:03:51]} Rg5 {[%emt 0:01:25]} 34. Ne4 {[%emt 0:01:17]} Rxf5+ {[%emt 0:00:36]} 35. Kg2 {[%emt 0:00:00]} Rg8+ {[%emt 0:03:16]} 36. Kh1 {[%emt 0:02:37]} d2 {[%emt 0:00:37]} 37. Rd1 {[%emt 0:01:38]} Nf2+ {[%emt 0:00:18]} 38. Nxf2 {[%emt 0:00:07]} Rxf2 {[%emt 0:00:00]} 39. Re3 {[%emt 0:01:26]} Bg5 {[%emt 0:01:33]} 40. Re4 {[%emt 0:00:00]} Bf6 {[%emt 0:00:00]} 41. a4 {[%emt 0:12:59]} Rgg2 {[%emt 0:06:00]} 42. Bf4 {[%emt 0:04:00]} h3 {[%emt 0:01:57]} 43. b5 {[%emt 0:03:07]} axb5 {[%emt 0:04:05]} 44. axb5 {[%emt 0:00:10]} h2 {[%emt 0:00:13]} 45. Re8+ {[%emt 0:00:08]} Bd8 {[%emt 0:02:01]} 46. Bxd2 {[%emt 0:00:35]} Rxd2 {[%emt 0:00:08]} 47. Ra1 {[%emt 0:00:35]} Ra2 {[%emt 0:01:45]} 48. Rd1 {[%emt 0:00:13]} Rgd2 {[%emt 0:03:01]} 49. Rde1 {[%emt 0:00:08]} cxb5 {[%emt 0:02:15]} 50. cxb5 {[%emt 0:00:06]} Rg2 {[%emt 0:02:13]} 51. b6 {[%emt 0:00:26]} Rg1+ {[%emt 0:00:30]} 52. Rxg1 {[%emt 0:00:02]} hxg1=Q+ {[%emt 0:00:08]} 53. Kxg1 {[%emt 0:00:05]} Rb2 {[%emt 0:00:39]} 54. Rf8 {[%emt 0:00:16]} f6 {[%emt 0:01:04]} 55. Kf1 {[%emt 0:00:18]} Rb5 {[%emt 0:01:43]} 56. Ke2 {[%emt 0:02:14]} Rb1 {[%emt 0:01:55]} 57. Kf3 {[%emt 0:00:40]} Rb5 {[%emt 0:03:43]} 58. Kf4 {[%emt 0:00:13]} Rxc5 {[%emt 0:01:12]} 1/2-1/2

[Event "WYCC 2018 G18"]
[Site "Halkidiki"]
[Date "2018.10.22"]
[Round "4"]
[White "Tejaswini, Sagar"]
[Black "Cibikova, Sofia Anna"]
[Result "1-0"]
[ECO "B40"]
[WhiteElo "2139"]
[BlackElo "1809"]
[Annotator "NA"]
[PlyCount "43"]
[EventDate "2018.10.20"]
[EventType "swiss"]
[EventCountry "GRE"]
[SourceTitle "playchess.com"]
[Source "ChessBase"]
[SourceQuality "1"]
[TimeControl "40/5400+30:1800+30"]

1. e4 {[%emt 0:00:00]} c5 {[%emt 0:00:00]} 2. Nf3 {[%emt 0:00:00]} e6 {[%emt 0:00:00]} 3. d4 {[%emt 0:00:00]} cxd4 {[%emt 0:00:00]} 4. Nxd4 {[%emt 0:00:00]} Nf6 {[%emt 0:00:03]} 5. Nc3 {[%emt 0:00:00]} Nc6 {[%emt 0:00:16]} 6. Nxc6 {[%emt 0:00:00]} bxc6 {[%emt 0:00:14]} 7. e5 {[%emt 0:00:09]} Nd5 {[%emt 0:00:35]} 8. Ne4 {[%emt 0:00:12]} Qc7 {[%emt 0:08:18]} 9. f4 {[%emt 0:00:14]} f5 {[%emt 0:11:17]} 10. exf6 {[%emt 0:00:39]} Nxf6 {[%emt 0:00:15]} 11. Nxf6+ {[%emt 0:00:29]} gxf6 {[%emt 0:00:08]} 12. Qh5+ {[%emt 0:01:39]} Ke7 {[%emt 0:01:05]} 13. Be3 {[%emt 0:09:15]} d5 {[%emt 0:10:40]} 14. Bd3 {[%emt 0:09:18]} c5 {[%emt 0:06:54]} 15. O-O {[%emt 0:01:00]} Bb7 {[%emt 0:05:46]} 16. Rae1 {[%emt 0:02:49]} Re8 {[%emt 0:04:51]} 17. Bf2 {[%emt 0:11:09]} Kd8 {[%emt 0:03:40]} 18. Bh4 {[%emt 0:01:00]} Be7 {[%emt 0:11:12]} 19. Rxe6 {[%emt 0:05:34]} c4 {[%emt 0:03:05]} 20. Bf5 {[%emt 0:05:41]} Bc5+ {[%emt 0:01:50]} 21. Kh1 {[%emt 0:01:33]} Rxe6 {[%emt 0:00:30]} 22. Bxe6 {[%emt 0:00:14]} 1-0